fUSD/lending_fUSD_20260302
["ID","MTS","AMOUNT","RATE_DAILY","PERIOD"]
[406981503,1772409601195,4051.93,8e-05,2]
[406981504,1772409601227,4971.87037088,8e-05,2]
[406981505,1772409601253,1149.15579404,8e-05,2]
[406981506,1772409601278,1149.15579404,8e-05,2]
[406981507,1772409601303,2.8866099,8e-05,2]
[406981508,1772409602662,-849.0,0.00011098,2]
[406981509,1772409602701,-300.0,0.00011098,2]
[406981510,1772409606300,241.0,0.00011098,2]
[406981511,1772409638927,440.17648814,0.00011098,2]
[406981512,1772409638992,152.19793961,0.00011098,2]
[406981515,1772409661798,195.25936293,0.00011098,2]
[406981516,1772409699954,1255.202,0.00010877,2]
[406981517,1772409700092,164.486,0.00010877,2]
[406981518,1772409701584,438.58448529,0.00011098,2]
[406981519,1772409736696,151.0,0.00011099,2]
[406981520,1772409737348,151.0,0.00011099,2]
[406981521,1772409737582,392.95793144,7.888e-05,2]
[406981522,1772409737962,151.0,0.00011099,2]
[406981523,1772409738571,151.0,0.00011099,2]
[406981524,1772409739177,151.0,0.00011099,2]
[406981525,1772409739804,151.0,0.00011099,2]
[406981526,1772409740437,151.0,0.00011099,2]
[406981527,1772409795073,-8280.12729482,0.00011099,2]
[406981528,1772409805033,3180.24615564,0.00011098,2]
[406981529,1772409815490,308.1235417,0.00011098,2]
[406981530,1772410010403,215.68647919,0.00011098,2]
[406981533,1772410226555,6295.95382347,0.00010999,2]
[406981534,1772410226582,10000.01,0.00010999,2]
[406981535,1772410226609,10000.01,0.00010999,2]
[406981536,1772410226634,10000.01,0.00010999,2]
[406981537,1772410226664,10000.01,0.00010999,2]
[406981538,1772410226693,10000.01,0.00010999,2]
[406981539,1772410226719,10000.01,0.00010999,2]
[406981540,1772410226746,10000.01,0.00010999,2]
[406981541,1772410226773,10000.01,0.00010999,2]
[406981542,1772410226801,10000.01,0.00010999,2]
[406981551,1772410231968,-101004.399523,0.00010999,2]
[406981553,1772410232039,-120125.22962409,0.00010999,2]
[406981554,1772410232051,-81940.96157966,0.00010999,2]
[406981555,1772410232063,-70171.75398731,0.00010999,2]
[406981556,1772410232075,-83795.85466198,0.00010999,2]
[406981557,1772410232088,-256.43587715,0.00010999,2]
[406981558,1772410232100,-5227.97513753,0.00010999,2]
[406981575,1772410238718,-1594.34128727,0.00010999,2]
[406981576,1772410238766,-313.51115734,0.00010999,2]
[406981577,1772410238788,-5031.6020446,0.00010999,2]
[406981578,1772410238828,-325.58429172,0.00010999,2]
[406981579,1772410238869,-2224.17408572,0.00010999,2]
[406981580,1772410238880,-1274.6223246,0.00010999,2]
[406981581,1772410238891,-5560.26673288,0.00010999,2]
[406981582,1772410238902,-485.4300017,0.00010999,2]
[406981587,1772410240233,-2150.1,0.00010999,2]
[406981588,1772410240245,-371.29005303,0.00010999,2]
[406981589,1772410240257,-661.015,0.00010999,2]
[406981590,1772410240269,-1655.35490122,0.00010999,2]
[406981591,1772410240280,-1919534.05390573,0.00010999,2]
[406981592,1772410240290,-98451.4374,0.00011099,2]
[406981593,1772410240300,-272.77194292,0.00011099,2]
[406981594,1772410240311,-151.0,0.00011099,2]
[406981595,1772410240321,-241.0,0.00011099,2]
[406981596,1772410240330,-681.01,0.00011114,2]
[406981597,1772410240340,-681.01,0.00011525,2]
[406981598,1772410240350,-272.77194287,0.00011766,2]
[406981599,1772410240359,-681.01,0.00011937,2]
[406981600,1772410240370,-5531.0,0.00012,5]
[406981601,1772410240379,-434.33035733,0.0001207,2]
[406981602,1772410240389,-500.0,0.0001207,2]
[406981603,1772410240400,-161.26,0.00012146,2]
[406981604,1772410240411,-250.0,0.00012209,2]
[406981605,1772410240423,-250.0,0.00012209,2]
[406981606,1772410240433,-3185.55904103,0.00012209,2]
[406981607,1772410240442,-250.0,0.00012209,2]
[406981608,1772410240452,-681.01,0.00012348,2]
[406981609,1772410240462,-272.77194287,0.00012533,2]
[406981610,1772410240473,-681.01,0.0001276,2]
[406981611,1772410240482,-681.01,0.00013172,2]
[406981612,1772410240492,-151.786638,0.00013295,2]
[406981613,1772410240502,-272.77194287,0.00013299,2]
[406981614,1772410240511,-681.01,0.00013583,2]
[406981615,1772410240522,-169.00501324,0.00013699,2]
[406981616,1772410240532,-681.01,0.00013995,2]
[406981617,1772410240542,-272.77194287,0.00014066,2]
[406981618,1772410240551,-516.0,0.0001411,2]
[406981619,1772410240561,-681.01,0.00014407,2]
[406981620,1772410240572,-952.06,0.00014762,2]
[406981621,1772410240582,-681.01,0.00014818,2]
[406981622,1772410240591,-272.77194287,0.00014833,2]
[406981623,1772410240601,-797.61,0.00014841,2]
[406981624,1772410240610,-3240.0,0.0001495,2]
[406981625,1772410240621,-250.0,0.00015,2]
[406981626,1772410240630,-160.0,0.00015139,2]
[406981627,1772410240640,-797.61,0.00015212,2]
[406981628,1772410240649,-681.01,0.0001523,2]
[406981629,1772410240659,-797.61,0.00015583,2]
[406981630,1772410240671,-2559.0,0.000156,2]
[406981631,1772410240681,-272.77194287,0.000156,2]
[406981632,1772410240690,-681.01,0.00015641,2]
[406981633,1772410240700,-578.20924308,0.00015688,2]
[406981634,1772410240709,-644.79446246,0.00015688,2]
[406981635,1772410240718,-668.65185757,0.00015743,2]
[406981636,1772410240728,-693.3919763,0.00015798,2]
[406981637,1772410240737,-719.04747942,0.00015853,2]
[406981638,1772410240746,-500.0,0.00015875,2]
[406981639,1772410240756,-745.65223616,0.00015908,2]
[406981640,1772410240766,-797.61,0.00015954,2]
[406981641,1772410240776,-189.733297,0.00015954,7]
[406981642,1772410240786,-773.2413689,0.00015963,2]
[406981643,1772410240796,-801.85129955,0.00016018,2]
[406981644,1772410240806,-831.51979763,0.00016073,2]
[406981645,1772410240816,-862.28603014,0.00016128,2]
[406981647,1772410240826,-894.19061326,0.00016183,2]
[406981649,1772410240835,-24685.8,0.000162,5]
[406981651,1772410240844,-927.27566595,0.00016238,2]
[406981653,1772410240854,-961.58486559,0.00016293,2]
[406981655,1772410240863,-797.61,0.00016325,2]
[406981657,1772410240873,-997.16350561,0.00016348,2]
[406981659,1772410240882,-500.0,0.00016356,2]
[406981666,1772410241036,-1000.0,0.00016356,2]
[406981667,1772410241046,-500.0,0.00016356,2]
[406981668,1772410241057,-272.77194287,0.00016366,2]
[406981669,1772410241066,-2000.0,0.00016438,2]
[406981670,1772410241076,-952.06,0.00016608,2]
[406981671,1772410241085,-3500.0,0.00016781,2]
[406981672,1772410241095,-1041.0,0.00016781,2]
[406981673,1772410241104,-619.0,0.00016781,2]
[406981674,1772410241113,-1278.0,0.00016781,2]
[406981675,1772410241123,-1211.0,0.00016781,2]
[406981676,1772410241132,-921.0,0.00016781,2]
[406981677,1772410241141,-413.0,0.00016781,2]
[406981678,1772410241151,-2457.0,0.00016781,2]
[406981679,1772410241160,-4575.0,0.00016781,2]
[406981680,1772410241172,-500.0,0.00016973,2]
[406981681,1772410241182,-500.0,0.00016973,2]
[406981682,1772410241191,-500.0,0.00016973,2]
[406981683,1772410241201,-300.0,0.00017,2]
[406981684,1772410241211,-5707.82214942,0.00017015,2]
[406981685,1772410241221,-272.77194287,0.00017133,2]
[406981686,1772410241231,-1000.0,0.0001726,2]
[406981687,1772410241241,-993.0,0.00017325,2]
[406981688,1772410241251,-500.0,0.00017521,2]
[406981689,1772410241262,-500.0,0.00017521,2]
[406981690,1772410241271,-1000.0,0.00017534,2]
[406981691,1772410241282,-187.22783175,0.0001764,2]
[406981692,1772410241292,-150.0,0.00017698,2]
[406981693,1772410241302,-500.0,0.00017705,2]
[406981694,1772410241311,-2000.0,0.00017705,2]
[406981695,1772410241321,-1000.0,0.00017726,7]
[406981696,1772410241331,-168.0,0.00017749,2]
[406981697,1772410241342,-150.0,0.00017753,2]
[406981698,1772410241353,-150.0,0.00017808,2]
[406981699,1772410241362,-500.0,0.00017808,2]
[406981700,1772410241372,-500.0,0.00017808,2]
[406981701,1772410241381,-500.0,0.00017808,2]
[406981702,1772410241392,-500.0,0.00017808,2]
[406981703,1772410241402,-500.0,0.00017808,2]
[406981704,1772410241412,-500.0,0.00017808,2]
[406981705,1772410241424,-500.0,0.00017808,2]
[406981706,1772410241434,-500.0,0.00017808,2]
[406981707,1772410241443,-500.0,0.00017808,2]
[406981708,1772410241452,-500.0,0.00017808,2]
[406981709,1772410241462,-496.82503006,0.00017808,2]
[406981710,1772410241472,-1000.0,0.00017808,2]
[406981711,1772410241482,-542.717266,0.00017813,7]
[406981712,1772410241491,-164.66750726,0.00017862,2]
[406981713,1772410241500,-272.77194287,0.000179,2]
[406981714,1772410241509,-500.0,0.00017973,2]
[406981715,1772410241520,-314.1553363,0.00017973,2]
[406981716,1772410241530,-155.0,0.00017999,2]
[406981717,1772410241540,-1024206.02354604,0.00018,2]
[406981718,1772410241550,-500.0,0.00018,3]
[406981719,1772410241559,-708926.55512296,0.00018,2]
[406981720,1772410241573,-750.0,0.00018,2]
[406981721,1772410241591,-1015.96867818,0.00018,2]
[406981722,1772410241603,-872.14,0.00018,2]
[406981750,1772410243301,-809.74516329,0.00017808,2]
[406981751,1772410243323,-101.25483671,0.00017808,2]
[406981752,1772410243343,-2110.85659762,0.00018,2]
[406981753,1772410243363,-1677.93788366,0.00018,2]
[406981755,1772410246060,-659.0,0.000179,2]
[406981756,1772410246283,-2425.61548441,0.000179,2]
[406981757,1772410246293,-4194.43606931,0.00018,2]
[406981758,1772410246305,-7359.0,0.00018,2]
[406981762,1772410384769,10000.01,0.00010999,2]
[406981763,1772410384796,10000.01,0.00010999,2]
[406981764,1772410384827,10000.01,0.00010999,2]
[406981765,1772410384854,10000.01,0.00010999,2]
[406981766,1772410384882,10000.01,0.00010999,2]
[406981767,1772410384910,10000.01,0.00010999,2]
[406981768,1772410384936,10000.01,0.00010999,2]
[406981769,1772410384962,10000.01,0.00010999,2]
[406981770,1772410384988,10000.01,0.00010999,2]
[406981771,1772410385016,10000.01,0.00010999,2]
[406981772,1772410385042,5000.01,0.00010999,2]
[406981773,1772410386616,-500.0,0.00010998,2]
[406981774,1772410386649,-500.0,0.00010998,2]
[406981775,1772410386770,-500.0,0.00010998,2]
[406981776,1772410386803,-500.0,0.00010998,2]
[406981777,1772410386920,-500.0,0.00010998,2]
[406981778,1772410386954,-200.0,0.00010998,2]
[406981779,1772410390671,-1311.03004677,0.00010999,2]
[406981780,1772410393634,-5000.01,0.00010999,2]
[406981781,1772410394705,-4111.33760896,0.00010999,2]
[406981782,1772410394825,-10000.01,0.00010999,2]
[406981783,1772410394967,-10000.01,0.00010999,2]
[406981784,1772410395126,-10000.01,0.00010999,2]
[406981785,1772410395245,-10000.01,0.00010999,2]
[406981786,1772410395346,-10000.01,0.00010999,2]
[406981787,1772410395465,-10000.01,0.00010999,2]
[406981788,1772410395579,-10000.01,0.00010999,2]
[406981789,1772410395712,-10000.01,0.00010999,2]
[406981790,1772410395849,-10000.01,0.00010999,2]
[406981791,1772410396131,-10000.01,0.00010999,2]
[406981792,1772410396163,-10000.01,0.00010999,2]
[406981793,1772410396775,-5000.01,0.00010999,2]
[406981794,1772410399803,-5000.01,0.00010999,2]
[406981795,1772410402803,-5000.01,0.00010999,2]
[406981796,1772410405844,-5000.01,0.00010999,2]
[406981797,1772410408807,1112.778078,0.00010944,2]
[406981798,1772410408911,-5000.01,0.00010999,2]
[406981799,1772410411860,1200.0,0.00010998,2]
[406981800,1772410411928,-5000.01,0.00010999,2]
[406981801,1772410414946,-5000.01,0.00010999,2]
[406981802,1772410417966,-5000.01,0.00010999,2]
[406981803,1772410420986,-5000.01,0.00010999,2]
[406981804,1772410423996,-5000.01,0.00010999,2]
[406981805,1772410427185,-5000.01,0.00010999,2]
[406981806,1772410430329,-5000.01,0.00010999,2]
[406981807,1772410433094,-5000.01,0.00010999,2]
[406981808,1772410436198,-5000.01,0.00010999,2]
[406981809,1772410439159,-5000.01,0.00010999,2]
[406981810,1772410439699,500.0,0.00010998,2]
[406981811,1772410442148,-5000.01,0.00010999,2]
[406981812,1772410445262,-5000.01,0.00010999,2]
[406981813,1772410448382,-5000.01,0.00010999,2]
[406981814,1772410451246,-5000.01,0.00010999,2]
[406981815,1772410454354,-5000.01,0.00010999,2]
[406981816,1772410460351,-5000.01,0.00010999,2]
[406981817,1772410501173,1200.0,0.00010998,2]
[406981818,1772410501206,300.0,0.00010998,2]
[406981819,1772410501237,300.0,0.00010998,2]
[406981820,1772410501269,300.0,0.00010998,2]
[406981821,1772410502298,150.0,0.00010998,2]
[406981822,1772410503631,300.0,0.00010998,2]
[406981823,1772410520295,500.0,0.00010998,2]
[406981824,1772410520329,500.0,0.00010998,2]
[406981825,1772410520364,500.0,0.00010998,2]
[406981826,1772410520407,500.0,0.00010998,2]
[406981827,1772410520449,500.0,0.00010998,2]
[406981828,1772410520494,500.0,0.00010998,2]
[406981829,1772410520544,500.0,0.00010998,2]
[406981830,1772410520619,500.0,0.00010998,2]
[406981831,1772410520658,500.0,0.00010998,2]
[406981832,1772410520707,137.231922,0.00010998,2]
[406981833,1772410520735,362.768078,0.00010998,2]
[406981834,1772410520774,500.0,0.00010998,2]
[406981835,1772410520813,500.0,0.00010998,2]
[406981836,1772410520855,500.0,0.00010998,2]
[406981837,1772410520891,500.0,0.00010998,2]
[406981838,1772410521108,500.0,0.00010998,2]
[406981839,1772410521146,593.78284142,0.00010998,2]
[406981840,1772410521215,500.0,0.00010998,2]
[406981841,1772410521249,500.0,0.00010998,2]
[406981842,1772410521282,500.0,0.00010998,2]
[406981843,1772410521331,500.0,0.00010998,2]
[406981844,1772410521366,500.0,0.00010998,2]
[406981845,1772410547053,278.63111123,0.00010899,2]
[406981846,1772410561297,300.0,0.00010998,2]
[406981847,1772410607706,179.48878829,0.00010998,2]
[406981848,1772410609431,251.4432,0.00010899,2]
[406981849,1772410682420,150.0,0.00010998,2]
[406981850,1772410683605,300.0,0.00010998,2]
[406981851,1772410744647,2500.0,0.00010899,2]
[406981852,1772410774374,83.89598106,0.000108,2]
[406981853,1772410774400,2008.78214808,0.000108,2]
[406981854,1772410774436,4440.50373173,0.000108,2]
[406981855,1772410774730,3550.72412019,0.000108,2]
[406981856,1772410774757,413.05697477,0.000108,2]
[406981857,1772410774793,4917.22636859,0.000108,2]
[406981858,1772410774896,4669.72665664,0.000108,2]
[406981859,1772410774921,336.96866621,0.000108,2]
[406981860,1772410801210,300.0,0.00010998,2]
[406981861,1772410801241,1200.0,0.00010998,2]
[406981862,1772410814531,174.91920002,0.00010989,2]
[406981863,1772410861231,300.0,0.00010998,2]
[406981864,1772410862116,150.0,0.00010998,2]
[406981865,1772410863474,300.0,0.00010998,2]
[406981866,1772410900154,1614.705,0.00010779,2]
[406981867,1772410900201,167.965,0.00010779,2]
[406981868,1772410904824,2500.0,0.00010899,2]
[406981869,1772411043300,300.0,0.00010998,2]
[406981870,1772411066461,2500.0,0.00010899,2]
[406981871,1772411101184,492.42079998,0.00010998,2]
[406981872,1772411101208,707.57920002,0.00010998,2]
[406981874,1772411228259,1989.4211,0.00010899,2]
[406981875,1772411350789,1000.0,0.00010998,2]
[406981876,1772411401164,1181.0,0.00010998,2]
[406981877,1772411420986,500.0,0.00010998,2]
[406981878,1772411421039,500.0,0.00010998,2]
[406981879,1772411421093,477.08698238,0.00010998,2]
[406981886,1772411432174,-4583.54,0.00010999,2]
[406981887,1772411432220,-960.48302011,0.00010999,2]
[406981888,1772411432262,-315.31506907,0.00010999,2]
[406981889,1772411432306,-193037.99691471,0.00010999,2]
[406981890,1772411432320,-7549.01328094,0.00010999,2]
[406981891,1772411432334,-91476.2370475,0.00010999,2]
[406981892,1772411432348,-938.69965269,0.00010999,2]
[406981893,1772411432363,-308.29206342,0.00010999,2]
[406981894,1772411432393,-5749.99994,0.00010999,2]
[406981897,1772411432405,-1524.9999999,0.00010999,2]
[406981916,1772411438932,-981.56,0.00010999,2]
[406981917,1772411438945,-9880.22142175,0.00010999,2]
[406981918,1772411438960,-3015.00009,0.00010999,2]
[406981919,1772411438972,-267.7114011,0.00010999,2]
[406981920,1772411438984,-397.5763211,0.00010999,2]
[406981921,1772411438999,-1291.5890703,0.00010999,2]
[406981922,1772411439011,-4719.54033603,0.00010999,2]
[406981923,1772411439023,-603.22941727,0.00010999,2]
[406981924,1772411439035,-14580.878639,0.00010999,2]
[406981925,1772411439047,-367.0,0.00010999,2]
[406981926,1772411439058,-14617.3573474,0.00010999,2]
[406982053,1772411440398,-1812410.95131198,0.00010999,2]
[406982056,1772411440409,-500.0,0.00010999,2]
[406982059,1772411440422,-1000.0,0.00010999,2]
[406982061,1772411440431,-3143.59354213,0.00010999,2]
[406982063,1772411440442,-180.25340016,0.00010999,2]
[406982065,1772411440452,-823.26152017,0.00010999,2]
[406982067,1772411440462,-1500.0,0.00010999,2]
[406982069,1772411440471,-1532.60673339,0.00010999,2]
[406982071,1772411440481,-240.0,0.00010999,2]
[406982073,1772411440490,-1448.54000732,0.00011269,2]
[406982075,1772411440500,-264.139243,0.00011832,2]
[406982077,1772411440510,-434.33035733,0.0001207,2]
[406982079,1772411440520,-500.0,0.0001207,2]
[406982081,1772411440531,-5000.0,0.00012099,2]
[406982083,1772411440540,-195.0,0.00012099,2]
[406982085,1772411440550,-250.0,0.00012099,2]
[406982087,1772411440559,-250.0,0.00012099,2]
[406982089,1772411440569,-5000.0,0.00012099,2]
[406982091,1772411440582,-5531.0,0.000123,5]
[406982093,1772411440592,-174.66,0.00013,2]
[406982095,1772411440602,-2699.23718801,0.0001312,2]
[406982097,1772411440611,-367.0,0.00013415,2]
[406982099,1772411440620,-2442.17,0.00013923,2]
[406982101,1772411440629,-516.0,0.0001411,2]
[406982103,1772411440639,-330.174054,0.00014198,7]
[406982105,1772411440648,-482.68275809,0.00014253,2]
[406982107,1772411440658,-331.95590826,0.00014253,2]
[406982109,1772411440672,-150.72684983,0.00014253,2]
[406982111,1772411440682,-361.8091616,0.00014253,2]
[406982242,1772411443484,-120.87359649,0.00014253,2]
[406982243,1772411443493,-482.68275809,0.00014253,2]
[406982244,1772411443503,-409.47404542,0.00014253,2]
[406982256,1772411447107,-73.20871267,0.00014253,2]
[406982257,1772411447119,-482.68275809,0.00014253,2]
[406982258,1772411447130,-482.68275809,0.00014253,2]
[406982259,1772411447141,-482.68275809,0.00014253,2]
[406982260,1772411447153,-482.68275809,0.00014253,2]
[406982261,1772411447165,-60.06025497,0.00014253,2]
[406982262,1772411449822,935.31241748,0.00010999,2]
[406982263,1772411450229,1629.86017581,0.00010999,2]
[406982264,1772411452420,613.73156102,0.00010999,2]
[406982265,1772411452478,241.26843898,0.00010999,2]
[406982266,1772411464532,500.0,0.00010899,2]
[406982267,1772411491041,6079.83740671,0.00010899,2]
[406982268,1772411491070,10000.01,0.00010899,2]
[406982269,1772411491099,10000.01,0.00010899,2]
[406982270,1772411491127,10000.01,0.00010899,2]
[406982271,1772411491155,10000.01,0.00010899,2]
[406982272,1772411491182,10000.01,0.00010899,2]
[406982273,1772411491211,10000.01,0.00010899,2]
[406982274,1772411491239,10000.01,0.00010899,2]
[406982275,1772411491266,10000.01,0.00010899,2]
[406982276,1772411491296,10000.01,0.00010899,2]
[406982277,1772411522441,1157.585495,0.00010844,2]
[406982278,1772411547964,500.0,9.003e-05,2]
[406982279,1772411548449,500.0,9.003e-05,2]
[406982280,1772411548928,516.40868507,9.003e-05,2]
[406982281,1772411581233,300.0,0.00010898,2]
[406982282,1772411582618,150.0,0.00010898,2]
[406982283,1772411583669,1780.17078981,0.000107,2]
[406982284,1772411583715,5095.84503012,0.000107,2]
[406982285,1772411583742,3549.42458331,0.000107,2]
[406982286,1772411583773,300.0,0.00010898,2]
[406982287,1772411583813,6150.58541669,0.000107,2]
[406982288,1772411583840,663.09518025,0.000107,2]
[406982289,1772411584112,7069.98783081,0.000107,2]
[406982290,1772411584163,2266.92698894,0.000107,2]
[406982291,1772411584191,2029.99870443,0.000107,2]
[406982292,1772411584229,5494.70604827,0.000107,2]
[406982293,1772411584276,2475.3052473,0.000107,2]
[406982294,1772411584305,6855.13025321,0.000107,2]
[406982295,1772411669811,500.0,0.00010898,2]
[406982296,1772411669859,500.0,0.00010898,2]
[406982297,1772411669900,500.0,0.00010898,2]
[406982298,1772411669933,161.92412969,0.00010898,2]
[406982299,1772411669967,500.0,0.00010898,2]
[406982300,1772411670008,500.0,0.00010898,2]
[406982301,1772411670039,482.9556171,0.00010898,2]
[406982302,1772411670062,17.0443829,0.00010898,2]
[406982303,1772411670092,623.0359357,0.00010898,2]
[406982304,1772411670131,500.0,0.00010898,2]
[406982305,1772411670171,500.0,0.00010898,2]
[406982306,1772411670206,500.0,0.00010898,2]
[406982307,1772411670244,500.0,0.00010898,2]
[406982308,1772411670274,250.0,0.00010898,2]
[406982309,1772411670317,500.0,0.00010898,2]
[406982310,1772411670359,500.0,0.00010898,2]
[406982311,1772411670564,500.0,0.00010898,2]
[406982312,1772411670602,294.86631737,0.00010898,2]
[406982313,1772411670643,500.0,0.00010898,2]
[406982314,1772411670679,500.0,0.00010898,2]
[406982315,1772411670712,500.0,0.00010898,2]
[406982316,1772411670747,500.0,0.00010898,2]
[406982317,1772411670786,500.0,0.00010898,2]
[406982318,1772411670823,500.0,0.00010898,2]
[406982319,1772411670856,500.0,0.00010898,2]
[406982320,1772411670891,500.0,0.00010898,2]
[406982321,1772411694888,500.0,0.00010898,2]
[406982322,1772411694930,500.0,0.00010898,2]
[406982323,1772411694970,315.06336403,0.00010898,2]
[406982324,1772411694997,109.58713132,0.00010898,2]
[406982325,1772411695034,500.0,0.00010898,2]
[406982326,1772411695078,500.0,0.00010898,2]
[406982327,1772411695120,500.0,0.00010898,2]
[406982328,1772411695158,500.0,0.00010898,2]
[406982329,1772411695194,500.0,0.00010898,2]
[406982330,1772411695229,500.0,0.00010898,2]
[406982331,1772411695264,500.0,0.00010898,2]
[406982332,1772411695302,500.0,0.00010898,2]
[406982333,1772411695498,500.0,0.00010898,2]
[406982334,1772411695540,500.0,0.00010898,2]
[406982335,1772411695576,500.0,0.00010898,2]
[406982336,1772411695608,500.0,0.00010898,2]
[406982337,1772411695645,500.0,0.00010898,2]
[406982338,1772411695677,500.0,0.00010898,2]
[406982339,1772411695710,294.86631737,0.00010898,2]
[406982340,1772411695741,500.0,0.00010898,2]
[406982341,1772411695776,500.0,0.00010898,2]
[406982342,1772411701117,1200.0,0.00010898,2]
[406982343,1772411722525,395.55655131,0.00010799,2]
[406982344,1772411722551,499.57765909,0.00010799,2]
[406982345,1772411726257,369.04844761,0.00010799,2]
[406982346,1772411762728,150.0,0.00010898,2]
[406982347,1772411763526,300.0,0.00010898,2]
[406982348,1772411781144,323.85144377,0.00010898,2]
[406982349,1772411781185,185.75407414,0.00010799,2]
[406982350,1772411794865,500.0,0.00010898,2]
[406982351,1772411794900,500.0,0.00010898,2]
[406982352,1772411794933,500.0,0.00010898,2]
[406982353,1772411794974,500.0,0.00010898,2]
[406982354,1772411795019,500.0,0.00010898,2]
[406982355,1772411795083,500.0,0.00010898,2]
[406982356,1772411795122,500.0,0.00010898,2]
[406982357,1772411795159,500.0,0.00010898,2]
[406982358,1772411795194,500.0,0.00010898,2]
[406982359,1772411795234,500.0,0.00010898,2]
[406982360,1772411795275,500.0,0.00010898,2]
[406982361,1772411795325,500.0,0.00010898,2]
[406982362,1772411795367,314.10694611,0.00010898,2]
[406982363,1772411795407,500.0,0.00010898,2]
[406982364,1772411795452,500.0,0.00010898,2]
[406982365,1772411795492,500.0,0.00010898,2]
[406982366,1772411795533,357.67142928,0.00010898,2]
[406982367,1772411795567,142.32857072,0.00010898,2]
[406982368,1772411795795,500.0,0.00010898,2]
[406982369,1772411795830,500.0,0.00010898,2]
[406982370,1772411795885,500.0,0.00010898,2]
[406982371,1772411795922,500.0,0.00010898,2]
[406982372,1772411795962,500.0,0.00010898,2]
[406982373,1772411796003,500.0,0.00010898,2]
[406982374,1772411796037,500.0,0.00010898,2]
[406982375,1772411796072,500.0,0.00010898,2]
[406982376,1772411796113,500.0,0.00010898,2]
[406982377,1772411808873,500.0,0.00010898,2]
[406982378,1772411808905,500.0,0.00010898,2]
[406982379,1772411808942,500.0,0.00010898,2]
[406982380,1772411808978,500.0,0.00010898,2]
[406982381,1772411809010,500.0,0.00010898,2]
[406982382,1772411809048,500.0,0.00010898,2]
[406982383,1772411809086,500.0,0.00010898,2]
[406982384,1772411821529,300.0,0.00010898,2]
[406982385,1772411845884,200.0,0.00010899,2]
[406982386,1772411852315,292.22946283,0.00010898,2]
[406982387,1772411852364,500.0,0.00010898,2]
[406982388,1772411872652,250.0,0.00010898,2]
[406982391,1772411912066,315.45196645,0.00010898,2]
[406982392,1772411912089,441.54803355,0.00010898,2]
[406982393,1772411942045,198.83463463,0.00010898,2]
[406982394,1772411943890,300.0,0.00010898,2]
[406982395,1772412001141,1200.0,0.00010898,2]
[406982396,1772412001195,159.0,0.00010898,2]
[406982402,1772412099970,1291.764,0.00010681,2]
[406982403,1772412100117,167.965,0.00010681,2]
[406982404,1772412116599,246.0322984,0.00010799,2]
[406982405,1772412123556,300.0,0.00010898,2]
[406982406,1772412248300,1000.0,0.00010898,2]
[406982409,1772412301392,291.0,0.00010898,2]
[406982410,1772412379746,4403.86603342,0.000108,5]
[406982411,1772412379767,1127.13396658,0.000108,5]
[406982412,1772412443324,300.0,0.000107,3]